bitfinex-derivatives/quotes_ETHF0:USTF0_20240910
["timestamp","ask_amount","ask_price","bid_price","bid_amount"]
[1725977828387,0.42946,2328.4,2328.1,0.4295]
[1725977828587,10.70143248,2328.6,2327.6,3.72]
[1725977828588,0.42947,2328.3,2328.0,0.42952]
[1725977828793,10.70143248,2328.6,2327.9,0.42953]
[1725977829087,0.42952,2328.1,2327.8,0.42956]
[1725977829286,0.42943,2328.5,2327.9,0.42954]
[1725977829490,1.07356,2328.6,2327.6,3.72]
[1725977829681,10.97526524,2328.3,2327.6,3.72]
[1725977829882,0.42949,2328.2,2327.9,0.42954]
[1725977830085,0.42948,2328.3,2327.9,0.42954]
[1725977830296,0.42946,2328.4,2328.1,0.4295]
[1725977830595,0.42948,2328.3,2328.0,0.42951]
[1725977830995,0.42947,2328.4,2328.1,0.4295]
[1725977831683,10.74156159,2328.6,2328.2,0.42949]
[1725977831684,0.42945,2328.5,2328.2,0.42949]
[1725977831884,10.74156159,2328.6,2328.2,0.42947]
[1725977832092,0.42944,2328.5,2328.0,3.72]
[1725977832297,10.74156159,2328.6,2328.3,0.42946]
[1725977832793,1.21121,2328.7,2328.0,3.72]
[1725977832993,5.21731,2329.2,2328.5,0.42943]
[1725977832994,0.4294,2328.8,2328.5,0.42943]
[1725977833197,10.50987274,2328.6,2327.8,0.3902]
[1725977833396,10.50987274,2328.6,2328.0,3.72]
[1725977833591,0.3882,2329.1,2328.0,3.72]
[1725977833893,10.9046341,2328.6,2328.1,0.4295]
[1725977834188,0.42946,2328.4,2328.1,0.4295]
[1725977834389,0.42946,2328.4,2328.1,0.42951]
[1725977834697,0.42949,2328.3,2328.0,4.14952]
[1725977834990,1.07364,2328.4,2327.7,3.72]
[1725977835191,0.3695,2328.3,2328.0,0.42952]
[1725977835493,10.53595094,2328.5,2328.0,3.72]
[1725977835692,10.53595094,2328.6,2328.3,0.42947]
[1725977835894,0.4051,2328.8,2328.3,0.42947]
[1725977836195,0.4051,2328.8,2328.0,3.72]
[1725977836390,0.42942,2328.6,2328.0,3.72]
[1725977836590,0.42941,2328.7,2328.5,0.42943]
[1725977836791,0.83449,2328.8,2328.3,0.21146699]
[1725977836987,4.144,2329.6,2329.1,0.42932]
[1725977837187,4.144,2329.6,2328.4,1.07364]
[1725977837188,0.42928,2329.4,2329.0,4.14933]
[1725977837393,10.73166354,2329.3,2329.0,4.14934]
[1725977837593,0.42932,2329.2,2328.8,0.42938]
[1725977837994,10.79576234,2329.3,2329.0,0.42933]
[1725977838298,0.42928,2329.4,2329.0,0.42933]
[1725977838498,10.79576234,2329.5,2328.7,0.4016]
[1725977838695,10.79576234,2329.3,2328.6,3.72]
[1725977838889,1.07318,2329.5,2328.7,0.42938]
[1725977838890,0.42933,2329.1,2328.7,0.42938]
[1725977839103,0.42932,2329.2,2328.8,0.42938]
[1725977839397,1.07313,2329.5,2328.6,3.72]
[1725977839597,4.5491,2329.6,2328.6,3.72]
[1725977839598,1.07318,2329.4,2328.6,3.72]
[1725977839895,0.42933,2329.1,2328.7,0.42939]
[1725977840104,10.87355938,2329.5,2328.6,3.72]
[1725977840403,5.62219,2329.6,2328.6,3.72]
[1725977840404,10.87355938,2329.3,2328.6,3.72]
[1725977840695,0.42931,2329.2,2328.6,3.72]
[1725977840898,4.5491,2329.6,2328.6,3.72]
[1725977841093,4.5491,2329.6,2328.9,0.42935]
[1725977841094,1.07313,2329.5,2328.9,0.42935]
[1725977841294,10.88515044,2329.4,2328.6,3.72]
[1725977841499,11.95828044,2329.5,2328.5,0.42943]
[1725977841500,0.42937,2328.9,2328.5,0.42943]
[1725977841691,0.42939,2328.8,2328.5,0.42943]
[1725977841890,0.42939,2328.8,2328.4,0.42944]
[1725977842094,0.4294,2328.7,2328.4,0.42944]
[1725977842395,0.379,2329.1,2328.3,3.72]
[1725977842396,1.07341,2328.9,2328.3,3.72]
[1725977842695,10.85175962,2328.8,2328.3,3.72]
[1725977843003,10.85175962,2328.8,2328.5,0.42943]
[1725977843004,0.79829,2328.8,2328.5,0.42943]
[1725977843190,0.42941,2328.7,2328.4,0.42945]
[1725977843392,0.42943,2328.5,2328.3,3.72]
[1725977843599,0.3689,2328.8,2328.3,3.72]
[1725977843900,10.98896997,2328.7,2328.0,3.72]
[1725977844202,11.41837997,2328.7,2328.4,0.42944]
[1725977844598,11.41837997,2328.7,2328.0,3.72]
[1725977844599,10.98896997,2328.7,2328.0,3.72]
[1725977844795,0.42945,2328.5,2328.0,3.72]
[1725977845098,10.98896997,2328.7,2328.0,3.72]
[1725977845099,0.42943,2328.6,2328.0,3.72]
[1725977845290,0.42941,2328.7,2328.4,0.42945]
[1725977845490,4.144,2329.4,2328.6,3.72]
[1725977845697,4.144,2329.4,2328.9,0.42935]
[1725977845698,4.5382,2329.4,2328.9,0.42935]
[1725977845893,4.5382,2329.4,2328.8,0.20975911]
[1725977846094,4.5382,2329.4,2328.4,0.3668]
[1725977846095,10.57441405,2329.3,2328.4,0.3668]
[1725977846398,1.07332,2329.1,2328.6,0.42941]
[1725977846592,10.57441405,2329.3,2328.6,3.72]
[1725977846793,4.5382,2329.4,2329.0,0.42933]
[1725977846993,1.07302,2329.8,2329.3,0.42928]
[1725977846994,5.21702,2329.8,2329.3,0.42928]
[1725977847189,1.07307,2329.7,2329.0,3.72]
[1725977847394,0.42928,2329.4,2329.1,0.42931]
[1725977847595,0.42927,2329.5,2329.0,3.72]
[1725977847798,1.07295,2329.9,2329.2,0.42929]
[1725977848104,10.60153991,2329.6,2329.1,0.42932]
[1725977848311,0.42925,2329.5,2329.2,0.4293]
[1725977848605,0.42927,2329.4,2329.2,0.4293]
[1725977848793,0.42926,2329.5,2329.2,0.4293]
[1725977848992,10.60153991,2329.6,2329.0,3.72]
[1725977849394,0.42921,2329.8,2329.4,0.42926]
[1725977849603,0.83227,2330.0,2329.3,3.72]
[1725977849905,10.64906922,2329.9,2329.7,0.42921]
[1725977850304,10.64906922,2329.9,2329.6,0.42922]
[1725977850503,10.64906922,2329.9,2329.7,0.42921]
[1725977851007,0.3717,2330.1,2329.4,0.3995]
[1725977851208,0.3717,2330.1,2329.7,3.72]
[1725977851510,0.42909,2330.4,2329.7,3.72]
[1725977851709,0.4291,2330.4,2330.0,0.42915]
[1725977851896,0.42909,2330.4,2330.1,0.42914]
[1725977852097,0.42908,2330.4,2329.7,3.72]
[1725977852294,10.92479812,2330.5,2330.1,0.42913]
[1725977852508,10.92479812,2330.5,2330.0,4.14915]
[1725977852704,10.92479812,2330.5,2330.0,3.72]
[1725977852900,1.07272,2330.4,2329.7,3.72]
[1725977853095,0.42916,2330.0,2329.7,4.1492]
[1725977853299,10.74463819,2330.3,2329.8,0.42919]
[1725977853503,10.74463819,2330.3,2329.9,0.42917]
[1725977853695,0.42915,2330.1,2329.7,3.72]
[1725977853898,0.3867,2330.5,2329.7,3.72]
[1725977854101,0.3867,2330.5,2330.1,3.3]
[1725977854305,0.3867,2330.5,2330.3,0.42909]
[1725977854508,1.07241,2331.1,2330.6,0.42904]
[1725977854509,0.42901,2330.9,2330.6,0.42904]
[1725977854813,0.42901,2330.9,2330.2,4.2912]
[1725977854814,0.80667,2331.1,2330.8,3.3]
[1725977854998,0.3767,2331.5,2330.8,3.3]
[1725977855305,0.3777,2331.6,2331.3,3.3]
[1725977855506,0.80657,2331.6,2331.3,3.3]
[1725977855712,0.80657,2331.6,2330.5,0.7865]
[1725977855713,0.3777,2331.6,2331.0,3.3]
[1725977856005,10.76038928,2331.5,2331.0,3.3]
[1725977856208,10.76038928,2331.5,2330.9,3.71]
[1725977856710,10.76038928,2331.5,2331.2,4.13893]
[1725977856905,10.76038928,2331.5,2331.2,3.71]
[1725977857317,4.2896,2331.4,2330.9,3.71]
[1725977857505,0.79492,2331.3,2330.8,0.429]
[1725977857806,0.366,2331.3,2330.8,0.429]
[1725977858008,0.366,2331.3,2330.6,3.71]
[1725977858009,0.42895,2331.2,2330.7,0.42902]
[1725977858200,0.366,2331.3,2330.8,0.429]
[1725977858201,0.79493,2331.3,2330.8,0.429]
[1725977858401,0.79493,2331.3,2330.9,3.71]
[1725977858402,0.366,2331.3,2330.9,3.71]
[1725977858809,10.74844765,2331.2,2330.9,3.71]
[1725977859108,0.42897,2331.0,2330.9,3.71]
[1725977859312,10.74844765,2331.2,2330.5,4.0962]
[1725977859502,10.74844765,2331.2,2330.5,4.52526]
[1725977859699,10.74844765,2331.2,2330.5,4.0962]
[1725977859902,10.74844765,2331.2,2330.2,0.4028]
[1725977859903,11.82081765,2331.2,2329.9,3.71]
[1725977860116,1.07241,2331.1,2330.2,3.71]
[1725977860412,1.07241,2331.1,2329.8,0.8032]
[1725977860413,0.366,2331.3,2330.6,3.71]
[1725977860616,0.42895,2331.2,2330.8,0.429]
[1725977860909,11.00036485,2331.2,2330.7,0.21327614]
[1725977861101,11.00036485,2331.2,2330.8,0.429]
[1725977861102,11.00035485,2331.2,2330.8,0.429]
[1725977861303,10.57141485,2331.2,2330.6,3.71]
[1725977861503,10.57141485,2331.2,2330.0,0.3972]
[1725977861504,1.0724,2331.1,2330.4,0.42908]
[1725977861712,1.0724,2331.1,2330.5,0.42906]
[1725977862013,10.57141485,2331.2,2330.3,3.71]
[1725977862014,0.42904,2330.7,2330.4,0.42908]
[1725977862199,10.62818863,2331.0,2330.3,3.71]
[1725977862200,0.42907,2330.5,2330.3,3.71]
[1725977862407,1.07253,2330.8,2330.1,0.42913]
[1725977862715,10.62818863,2330.8,2329.9,3.71]
[1725977862915,0.42904,2330.7,2330.3,0.4291]
[1725977863218,4.144,2331.0,2330.2,3.71]
[1725977863406,0.42907,2330.5,2330.2,4.13912]
[1725977863605,0.81366,2330.6,2330.2,4.13912]
[1725977863811,0.42908,2330.5,2330.2,3.71]
[1725977864006,0.42908,2330.5,2330.2,4.13912]
[1725977864408,0.3846,2330.6,2330.2,3.71]
[1725977864608,0.42907,2330.5,2330.2,0.42911]
[1725977865006,0.3846,2330.6,2330.0,0.42914]
[1725977865217,0.3846,2330.6,2329.9,3.71]
[1725977865515,0.383,2330.8,2330.2,3.71]
[1725977865915,0.42901,2330.8,2330.5,4.13906]
[1725977866216,0.429,2330.9,2330.6,0.42904]
[1725977866411,0.42902,2330.8,2330.5,0.42906]
[1725977866612,5.61069,2331.0,2330.2,3.71]
[1725977866818,0.42905,2330.6,2330.3,0.42909]
[1725977867126,0.42913,2330.2,2329.8,0.8032]
[1725977867307,1.07272,2330.4,2329.6,0.42923]
[1725977867617,10.54041842,2330.1,2329.5,4.186]
[1725977867917,0.42916,2330.0,2329.5,4.40243191]
[1725977868107,0.42915,2330.1,2329.8,0.42919]
[1725977868312,0.42915,2330.1,2329.8,0.42918]
[1725977868519,11.69912219,2330.3,2329.5,4.40243191]
[1725977868713,10.62632219,2330.3,2329.5,4.186]
[1725977869108,1.07281,2330.2,2329.7,0.42921]
[1725977869308,0.42918,2330.0,2329.7,0.42921]
[1725977869514,10.49439832,2330.1,2329.7,0.4292]
[1725977869716,0.42918,2329.9,2329.7,0.4292]
[1725977869914,10.49439832,2330.2,2329.3,3.71]
[1725977870115,0.42931,2329.2,2328.6,3.71]
[1725977870325,0.42928,2329.4,2329.0,0.42934]
[1725977870519,1.07309,2329.6,2328.9,0.42936]
[1725977870716,1.07309,2329.6,2328.6,3.71]
[1725977870717,0.42931,2329.2,2328.6,3.71]
[1725977870905,1.07318,2329.4,2328.6,4.1394]
[1725977871110,1.07318,2329.4,2328.5,0.7612]
[1725977871111,0.42936,2328.9,2328.5,0.3662]
[1725977871428,0.42943,2328.6,2328.1,0.4295]
[1725977871620,0.42943,2328.6,2328.0,3.71]
[1725977871621,11.36038751,2328.8,2328.0,3.71]
[1725977871813,11.78976751,2328.8,2328.3,0.42946]
[1725977872126,11.36038751,2328.8,2328.0,3.71]
[1725977872419,10.61548751,2328.8,2328.0,3.71]
[1725977872622,10.61548751,2328.8,2328.5,0.42942]
[1725977872811,10.61548751,2328.8,2328.4,3.71]
[1725977873121,10.61548751,2328.8,2328.5,0.42942]
[1725977873323,10.61548751,2328.8,2328.4,4.13944]
[1725977873621,10.61548751,2328.8,2328.6,0.42941]
[1725977873813,10.61548751,2328.8,2328.4,3.71]
[1725977874014,10.61548751,2328.8,2328.4,0.42944]
[1725977874511,11.04487751,2328.8,2328.4,0.42944]
[1725977874920,10.61548751,2328.8,2328.5,0.42943]
[1725977875117,0.3799,2329.2,2328.1,4.186]
[1725977875118,0.42932,2329.1,2328.6,0.4294]
[1725977875323,0.42934,2329.1,2328.7,0.4294]
[1725977875523,11.37916362,2329.1,2328.7,0.4294]
[1725977875923,10.94983362,2329.1,2328.8,0.42938]
[1725977876122,10.94983362,2329.1,2328.4,3.71]
[1725977876123,11.37917362,2329.1,2328.7,0.42939]
[1725977876324,11.37916362,2329.1,2328.7,0.42939]
[1725977876621,0.42935,2329.0,2328.6,0.42942]
[1725977876823,0.42936,2328.9,2328.5,0.3992]
[1725977877016,10.93484046,2328.9,2328.3,0.42946]
[1725977877213,1.45322,2329.2,2328.4,3.71]
[1725977877409,0.42937,2328.9,2328.4,3.71]
[1725977877615,10.93484046,2328.9,2328.5,0.42942]
[1725977877810,0.3799,2329.2,2328.7,0.42939]
[1725977878114,0.42935,2329.0,2328.6,0.4294]
[1725977878323,0.42937,2328.9,2328.6,0.42941]
[1725977878525,10.58603629,2328.9,2328.4,3.71]
[1725977878720,10.58603629,2328.9,2328.8,0.42938]
[1725977878923,0.42933,2329.1,2328.8,0.42938]
[1725977879126,0.80921,2329.2,2328.9,0.42936]
[1725977879324,0.3799,2329.2,2328.5,0.3658]
[1725977879621,0.42934,2329.0,2328.8,0.42938]
[1725977880027,0.42933,2329.1,2328.8,0.42938]
[1725977880217,0.80922,2329.2,2329.0,0.42934]
[1725977880421,1.07309,2329.6,2328.7,3.71]
[1725977880621,0.4293,2329.3,2329.0,0.42933]
[1725977880816,12.74135065,2329.5,2328.9,0.42935]
[1725977881022,12.74135065,2329.5,2328.5,41.1658]
[1725977881023,10.5063572,2329.2,2328.5,41.1658]
[1725977881223,10.5063572,2329.2,2328.4,3.71]
[1725977881524,1.85575,2329.5,2328.8,1.07346]
[1725977881525,0.3821,2329.5,2328.8,1.07346]
[1725977881728,0.3821,2329.5,2328.7,3.71]
[1725977881919,0.42928,2329.4,2329.2,0.4293]
[1725977882226,0.3821,2329.5,2328.8,0.3877]
[1725977882422,0.4294,2328.8,2328.5,4.5574]
[1725977882625,1.07336,2329.0,2328.5,0.3714]
[1725977882824,0.42943,2328.6,2328.1,4.1001]
[1725977883028,0.42943,2328.6,2328.3,0.42947]
[1725977883428,1.07346,2328.8,2328.1,44.9001]
[1725977883723,0.42942,2328.6,2328.3,0.42946]
[1725977883928,11.73599026,2328.8,2328.1,4.1001]
[1725977883929,0.42944,2328.5,2328.1,4.1001]
[1725977884120,0.42943,2328.6,2328.1,4.1001]
[1725977884316,0.42943,2328.6,2328.4,0.42945]
[1725977884523,10.66253026,2328.8,2328.1,4.1001]
[1725977884726,11.73602026,2328.8,2328.3,0.42947]
[1725977885022,10.66253026,2328.8,2328.1,5.17384]
[1725977885222,0.81146,2328.9,2328.6,0.42941]
[1725977885431,0.3821,2328.9,2328.1,4.1001]
[1725977885727,10.82307638,2328.8,2328.1,4.1001]
[1725977886226,1.0735,2328.7,2327.8,3.71]
[1725977886525,10.94544728,2328.6,2327.8,3.71]
[1725977886735,1.07361,2328.5,2327.8,3.71]
[1725977886926,0.42949,2328.2,2327.9,0.42954]
[1725977887434,10.66784533,2328.4,2327.9,0.42954]
[1725977887615,10.66784533,2328.1,2327.5,0.97694846]
[1725977887925,11.04694533,2328.3,2327.5,0.97694846]
[1725977888128,11.04694533,2328.3,2327.2,0.3831]
[1725977888129,10.55788375,2328.2,2327.1,3.71]
[1725977888322,10.55788375,2328.2,2327.1,4.468]
[1725977888515,1.8346,2328.3,2327.1,1.18769]
[1725977888516,0.42964,2327.4,2327.1,1.18769]
[1725977888824,1.07388,2327.9,2326.8,3.92211639]
[1725977889024,0.42959,2327.7,2327.3,0.42965]
[1725977889234,0.42959,2327.7,2327.4,0.42964]
[1725977889416,10.64430254,2327.6,2327.1,3.71]
[1725977889727,10.64430254,2327.6,2327.4,0.42963]
[1725977890224,10.64430254,2327.6,2327.3,0.42964]
[1725977890428,11.07390254,2327.6,2327.3,0.42964]
[1725977890625,10.64430254,2327.6,2327.4,0.42963]
[1725977890924,0.378,2328.0,2327.1,3.71]
[1725977891432,10.67903374,2327.9,2327.2,0.42966]
[1725977891625,10.67903374,2327.9,2327.1,3.71]
[1725977891817,10.67903374,2327.9,2326.9,0.7975]
[1725977892019,10.67903374,2327.9,2327.7,0.42958]
[1725977892225,10.67903374,2327.9,2327.4,3.71]
[1725977892421,0.80858,2328.3,2327.7,3.71]
[1725977892627,0.3791,2328.3,2327.7,3.71]
[1725977893019,0.3791,2328.3,2328.1,0.4295]
[1725977893232,0.3791,2328.3,2327.7,3.71]
[1725977893233,0.80857,2328.3,2328.0,0.42951]
[1725977893429,0.3942,2328.5,2328.2,0.42948]
[1725977893634,0.3684,2328.9,2328.1,3.71]
[1725977893831,0.3684,2328.9,2328.4,3.71]
[1725977894032,1.83582,2329.4,2328.8,0.42937]
[1725977894239,1.07323,2329.3,2328.6,0.42941]
[1725977894439,11.94969457,2329.3,2328.7,0.42939]
[1725977894623,10.87646457,2329.3,2328.5,40.8]
[1725977894936,10.87646457,2329.3,2328.4,3.71]
[1725977895125,0.42939,2328.8,2328.2,0.7744]
[1725977895326,0.4294,2328.7,2328.4,0.42944]
[1725977895531,0.42935,2329.0,2328.6,0.4294]
[1725977895737,10.70355832,2329.0,2328.4,3.71]
[1725977895930,0.4294,2328.8,2328.4,0.42945]
[1725977896129,0.42943,2328.6,2328.2,1.20388]
[1725977896330,0.42943,2328.6,2328.3,0.42946]
[1725977896632,0.4003,2328.7,2328.2,0.3801]
[1725977897138,0.4003,2328.7,2328.3,0.42947]
[1725977897139,11.05791253,2328.6,2328.3,0.42947]
[1725977897338,0.42943,2328.6,2328.3,0.42947]
[1725977897526,0.4003,2328.7,2328.2,0.3801]
[1725977897725,0.4003,2328.7,2328.1,3.71]
[1725977897726,1.07359,2328.6,2327.8,4.0957]
[1725977897926,0.42951,2328.2,2328.0,0.42953]
[1725977898127,1.07359,2328.5,2327.8,3.71]
[1725977898330,0.42948,2328.3,2327.8,3.71]
[1725977898537,10.91081541,2328.4,2328.1,0.42949]
[1725977898744,10.91081541,2328.4,2328.2,0.42949]
[1725977898930,0.772,2328.7,2327.8,3.71]
[1725977898931,10.48136541,2328.6,2327.8,3.71]
[1725977899127,10.48136541,2328.6,2327.6,0.372]
[1725977899128,0.42954,2328.0,2327.7,0.42956]
[1725977899427,0.42953,2328.0,2327.8,0.42955]
[1725977899636,0.42953,2328.0,2327.7,0.42957]
[1725977900045,1.07387,2327.9,2327.1,7.896]
[1725977900232,0.3717,2327.8,2327.1,3.71]
[1725977900544,10.71789875,2327.7,2327.1,3.71]
[1725977900842,10.71789875,2327.7,2326.9,40.8]
[1725977900843,0.42965,2327.4,2327.2,0.42967]
[1725977901134,0.42963,2327.5,2327.2,0.42967]
[1725977901337,0.42963,2327.5,2327.3,0.42966]
[1725977901538,10.71789875,2327.7,2327.3,0.42966]
[1725977901833,0.42961,2327.6,2327.3,0.42965]
[1725977902031,0.42961,2327.6,2326.9,0.42972]
[1725977902032,0.42968,2327.2,2326.9,0.42972]
[1725977902239,1.44565,2327.8,2326.8,4.1136]
[1725977902240,10.5992713,2327.5,2326.8,0.62056354]
[1725977902441,10.5992713,2327.5,2327.1,0.42968]
[1725977902636,1.074,2327.7,2326.8,4.33056354]
[1725977902637,10.5992713,2327.6,2326.8,4.33056354]
[1725977902937,0.42963,2327.5,2327.2,0.42967]
[1725977903137,11.04779022,2327.5,2327.2,0.42967]
[1725977903536,10.61816022,2327.6,2326.8,4.32456792]
[1725977903537,0.4296,2327.6,2327.3,0.42965]
[1725977903937,0.3717,2327.8,2326.8,4.32456792]
[1725977904138,0.42966,2327.3,2327.0,0.4297]
[1725977904339,1.07396,2327.7,2326.8,4.32456792]
[1725977904340,0.42965,2327.4,2326.8,4.32456792]
[1725977904544,0.42965,2327.4,2327.1,0.42968]
[1725977904842,10.48984675,2327.7,2326.8,4.32456792]
[1725977905046,0.42963,2327.5,2327.2,0.42967]
[1725977905233,10.48984675,2327.7,2326.8,4.32456792]
[1725977905536,10.48984675,2327.7,2327.1,3.71]
[1725977905741,0.3972,2328.3,2327.4,3.71]
[1725977905928,0.82668,2328.3,2328.0,0.42951]
[1725977906132,10.99531434,2328.3,2327.5,4.9802]
[1725977906335,0.42944,2328.5,2328.3,0.42947]
[1725977907243,0.42944,2328.5,2328.2,0.42948]
[1725977907434,0.42945,2328.4,2328.1,0.4295]
[1725977907746,10.51810349,2328.4,2327.6,4.186]
[1725977907932,0.4295,2328.2,2327.9,0.42954]
[1725977908134,0.42952,2328.1,2327.5,0.7942]
[1725977908330,0.42952,2328.1,2327.8,0.42956]
[1725977908535,0.42947,2328.3,2327.5,0.7942]
[1725977908743,5.60366,2328.6,2327.9,0.42953]
[1725977908744,0.42949,2328.2,2327.9,0.42953]
[1725977908946,4.5301,2328.6,2327.5,0.7942]
[1725977909242,11.19458356,2328.2,2328.0,0.42953]
[1725977909443,0.42951,2328.1,2327.8,0.42955]
[1725977909636,4.5301,2328.6,2327.5,0.7942]
[1725977909637,1.07364,2328.4,2327.5,0.7942]
[1725977909841,0.42954,2328.0,2327.7,0.42958]
[1725977910044,10.76508356,2328.3,2327.5,0.7942]
[1725977910341,0.3861,2328.6,2328.2,0.42948]
[1725977910644,0.42944,2328.5,2328.0,0.21569006]
[1725977910848,0.81553,2328.6,2328.3,0.42946]
[1725977911032,0.3861,2328.6,2328.0,0.21960076]
[1725977911340,0.3817,2328.8,2328.4,0.42944]
[1725977911539,0.42942,2328.6,2328.1,4.0767]
[1725977911738,0.3817,2328.8,2328.4,0.42945]
[1725977911945,0.42942,2328.6,2328.4,0.42945]
[1725977912135,0.42942,2328.6,2328.3,0.42946]
[1725977912331,0.42942,2328.6,2328.1,4.4626]
[1725977912737,0.3817,2328.8,2328.1,4.4626]
[1725977912946,0.3817,2328.8,2328.4,0.42944]
[1725977913150,1.0998302,2329.2,2328.4,3.71]
[1725977913339,5.7937453,2329.6,2329.0,3.71]
[1725977913536,0.3835,2329.9,2329.1,0.7651]
[1725977913734,0.3835,2329.9,2329.2,0.4293]
[1725977913941,11.13142757,2329.6,2329.2,0.42931]
[1725977914142,0.42923,2329.7,2329.3,0.42929]
[1725977914456,0.3835,2329.9,2329.1,0.7651]
[1725977914744,0.4026,2330.2,2329.3,3.71]
[1725977914948,0.42921,2329.8,2329.3,0.42927]
[1725977915337,12.74878371,2330.1,2329.1,0.7651]
[1725977915535,0.42922,2329.7,2329.2,0.4293]
[1725977915943,0.42922,2329.7,2328.7,4.186]
[1725977915944,10.57608351,2329.6,2328.7,3.71]
[1725977916143,0.42932,2329.1,2328.8,0.67112523]
[1725977916338,0.42932,2329.1,2328.7,0.42939]
[1725977916656,12.47001371,2329.6,2328.6,0.3805]
[1725977916949,1.07318,2329.4,2328.6,0.80992]
[1725977917147,1.0998302,2329.5,2328.6,0.3805]
[1725977917347,10.5320874,2329.3,2328.6,0.3805]
[1725977917558,10.9613674,2329.4,2329.0,0.42934]
[1725977917750,1.8939302,2329.6,2328.9,0.42935]
[1725977917751,0.42929,2329.3,2328.9,0.42935]
[1725977918044,11.25862336,2329.3,2328.8,0.42936]
[1725977918252,11.25862336,2329.3,2328.6,0.3805]
[1725977918253,11.25861336,2329.3,2328.9,0.42935]
[1725977918547,1.8939302,2329.6,2329.4,0.42926]
[1725977918548,0.405,2329.6,2329.4,0.42926]
[1725977918851,2.19966041,2330.1,2329.0,3.71]
[1725977918852,1.4889302,2330.1,2329.0,3.71]
[1725977919047,1.4889302,2330.1,2329.1,41.84889548]
[1725977919048,0.3978,2330.0,2329.1,41.84889548]
[1725977919356,10.93512258,2329.9,2329.8,0.42919]
[1725977919657,2.1725602,2330.4,2329.2,1.74419752]
[1725977919658,5.2438302,2330.5,2329.6,3.71]
[1725977919839,0.42917,2330.0,2329.6,0.42922]
[1725977920044,10.93512258,2330.3,2329.3,4.29385797]
[1725977920350,0.42914,2330.2,2329.8,0.42919]
[1725977920550,0.42919,2329.9,2329.5,0.42924]
[1725977920756,0.42919,2329.9,2329.3,4.0818]
[1725977920757,0.42917,2330.0,2329.3,4.0818]
[1725977920955,2.19966041,2330.7,2329.8,0.42919]
[1725977921141,1.07277,2330.3,2329.3,4.0818]
[1725977921346,0.42917,2330.0,2329.6,0.42922]
[1725977922058,0.42918,2329.9,2329.3,4.0818]
[1725977922451,0.42919,2329.9,2329.5,0.42924]
[1725977922751,12.06053262,2330.2,2329.5,0.42924]
[1725977922953,0.81,2329.8,2329.5,0.42924]
[1725977923351,0.42917,2330.0,2329.3,4.30029569]
[1725977923651,0.42915,2330.1,2329.7,0.4292]
[1725977923858,11.36852262,2330.2,2330.0,0.42914]
[1725977924041,11.36852262,2330.2,2329.6,3.71]
[1725977924042,10.98772262,2330.2,2329.7,1.07304]
[1725977924243,0.368,2331.0,2330.1,1.07286]
[1725977924443,0.429,2330.9,2330.6,0.42904]
[1725977924648,0.3808,2331.2,2330.4,3.71]
[1725977924950,1.0998302,2331.8,2331.0,3.71]
[1725977925254,0.42888,2331.6,2331.1,0.42895]
[1725977925554,1.07217,2331.6,2330.6,40.8]
[1725977925856,11.00052073,2331.5,2330.8,0.429]
[1725977926059,12.07275073,2331.5,2330.6,0.42903]
[1725977926353,1.0723,2331.3,2330.5,41.1725]
[1725977926557,11.24415035,2331.4,2330.5,41.1725]
[1725977926739,11.24415035,2331.4,2330.5,0.3725]
[1725977926740,10.84515035,2331.2,2330.5,0.3725]
[1725977927146,1.07232,2331.3,2330.5,0.3725]
[1725977927147,11.63348059,2331.3,2330.5,0.3725]
[1725977927348,1.07231,2331.3,2330.5,0.3725]
[1725977927558,0.399,2331.4,2330.5,0.3725]
[1725977927746,0.42899,2330.9,2330.5,0.80155]
[1725977927947,1.07236,2331.2,2330.2,0.3663]
[1725977928154,0.79742,2330.8,2330.3,0.42909]
[1725977928451,0.79741,2330.8,2330.4,0.42908]
[1725977928651,0.79741,2330.8,2330.2,0.3663]
[1725977928652,0.3684,2330.8,2330.2,0.3663]
[1725977928857,0.3684,2330.8,2330.3,0.42909]
[1725977929248,0.79742,2330.8,2330.3,0.42909]
[1725977929447,0.42905,2330.6,2330.2,0.79541]
[1725977929649,0.42904,2330.7,2330.2,0.3663]
[1725977929862,0.79742,2330.8,2330.3,0.4291]
[1725977930060,0.42903,2330.7,2330.3,0.4291]
[1725977930265,0.79742,2330.8,2330.4,0.42908]
[1725977930450,0.42904,2330.7,2330.3,0.42909]
[1725977930648,0.3684,2330.8,2330.2,0.3663]
[1725977930649,0.42905,2330.6,2330.2,0.79541]
[1725977930853,10.71911444,2330.6,2329.9,0.42916]
[1725977931052,11.08411444,2330.7,2329.9,0.42916]
[1725977931259,11.08411444,2330.7,2329.7,4.186]
[1725977931260,0.42916,2330.1,2329.7,4.6152]
[1725977931460,0.42912,2330.2,2329.8,0.42919]
[1725977931649,0.42909,2330.4,2329.6,0.3736]
[1725977931851,0.42909,2330.4,2330.1,0.42913]
[1725977931852,10.63199479,2330.4,2330.1,0.42913]
[1725977932054,11.06108479,2330.4,2330.0,0.42915]
[1725977932562,4.144,2330.5,2330.2,0.42912]
[1725977932763,0.42908,2330.5,2330.1,0.42913]
[1725977933654,0.365,2330.7,2329.7,7.896]
[1725977933958,0.42907,2330.5,2329.7,7.896]
[1725977934168,0.42907,2330.5,2330.2,0.42912]
[1725977934459,4.144,2331.4,2330.3,3.71]
[1725977934678,0.3921,2331.3,2330.8,0.429]
[1725977934956,0.429,2330.9,2330.5,0.42906]